bitfinex/quotes_ETHUSD_20230831
["timestamp","ask_amount","ask_price","bid_price","bid_amount"]
[1693504426482,20.1410243,1661.1,1660.7,0.002]
[1693504426803,2.9277433,1661.0,1660.7,0.002]
[1693504426981,4.51562,1660.9,1660.6,0.002]
[1693504427506,11.58890573,1661.0,1660.6,5.56532519]
[1693504427507,13.17666243,1661.0,1660.6,5.56532519]
[1693504427807,13.17666243,1661.0,1660.7,0.002]
[1693504427808,8.66116243,1661.0,1660.7,0.002]
[1693504428210,13.17663243,1661.0,1660.7,0.002]
[1693504428412,1.31766324,1660.9,1660.7,0.002]
[1693504428574,1.31766324,1660.9,1660.6,4.5184]
[1693504429278,11.16253,1661.0,1660.6,4.5184]
[1693504429480,6.64706,1661.0,1660.7,0.002]
[1693504430999,2.1316,1661.0,1660.7,6.02816]
[1693504431787,8.53599,1661.1,1660.7,6.02816]
[1693504431994,8.53599,1661.1,1660.8,0.002]
[1693504433592,6.62089,1661.1,1660.8,0.002]
[1693504433999,4.51509,1661.1,1660.8,0.002]
[1693504434803,2.1058,1661.2,1660.8,7.082267]
[1693504435003,32.4858,1661.4,1661.0,1.51]
[1693504435205,6.529,1661.4,1661.1,1.51]
[1693504435596,11.0433,1661.4,1661.1,1.51]
[1693504436690,11.0433,1661.4,1661.0,6.36348]
[1693504437080,11.0433,1661.4,1661.0,7.87348]
[1693504438915,11.0433,1661.4,1661.0,9.160589]
[1693504440519,11.0433,1661.4,1661.0,7.87348]
[1693504440820,11.99058882,1661.4,1661.0,7.87348]
[1693504441420,11.0433,1661.4,1661.0,7.87348]
[1693504441985,6.529,1661.4,1661.0,7.87348]
[1693504442419,11.04326,1661.4,1661.0,7.87348]
[1693504442616,11.04326,1661.4,1661.0,9.160589]
[1693504443013,6.52896,1661.4,1661.0,9.160589]
[1693504443315,11.99050882,1661.4,1661.0,9.160589]
[1693504443487,11.99050882,1661.4,1661.0,7.87348]
[1693504444218,11.99050882,1661.4,1661.0,3.3584]
[1693504444533,0.94728882,1661.3,1660.9,1.992]
[1693504444690,9.02972,1661.2,1661.0,0.002]
[1693504444891,9.02972,1661.2,1660.9,1.992]
[1693504445399,10.47889088,1661.2,1660.9,1.512]
[1693504445598,10.47889088,1661.2,1660.9,0.002]
[1693504445599,15.9410397,1661.2,1660.9,0.002]
[1693504445803,15.9410397,1661.2,1660.7,1.987]
[1693504446116,9.03043,1661.1,1660.8,0.002]
[1693504446319,9.03043,1661.1,1660.6,6.02625]
[1693504446320,9.97771882,1661.1,1660.7,0.002]
[1693504446620,5.418523,1661.0,1660.7,0.002]
[1693504447088,7.401223,1661.0,1660.7,0.002]
[1693504447293,7.401223,1661.0,1660.7,4.51814]
[1693504447700,2.885743,1661.0,1660.7,4.51814]
[1693504448232,7.401133,1661.0,1660.7,0.002]
[1693504448631,0.7401133,1660.9,1660.7,0.002]
[1693504448844,7.401133,1661.0,1660.6,6.02825]
[1693504449020,7.401133,1661.0,1660.7,0.002]
[1693504449021,11.916523,1661.0,1660.7,0.002]
[1693504456539,6.49809,1661.0,1660.7,1.512]
[1693504459248,6.49809,1661.0,1660.7,0.002]
[1693504461951,0.94728882,1661.1,1660.7,9.03428]
[1693504462179,0.94728882,1661.1,1660.9,6.02552]
[1693504462631,8.72602058,1661.2,1660.9,6.02552]
[1693504462838,8.72602058,1661.2,1660.9,2.614329]
[1693504464030,13.24090058,1661.2,1660.9,2.614329]
[1693504467362,0.94728882,1661.1,1660.9,2.614329]
[1693504467531,5.46237882,1661.1,1660.9,1.102329]
[1693504470249,5.46237882,1661.1,1660.8,1.992]
[1693504472061,5.46237882,1661.1,1660.8,6.50785]
[1693504473986,5.46237882,1661.1,1660.8,6.02785]
[1693504474671,5.46237882,1661.1,1660.8,1.512]
[1693504474986,9.97746882,1661.1,1660.8,1.512]
[1693504477262,9.97746882,1661.1,1660.8,0.002]
[1693504479087,11.24052058,1661.1,1660.8,0.002]
[1693504479915,0.94728882,1661.1,1660.9,1.51]
[1693504480219,7.77873176,1661.2,1661.0,1.51]
[1693504480220,8.72602058,1661.2,1661.0,1.51]
[1693504480733,0.94728882,1661.1,1660.9,6.02761]
[1693504481007,0.94728882,1661.1,1660.9,6.02561]
[1693504482419,0.94728882,1661.1,1660.9,1.51]
[1693504482623,0.94728882,1661.1,1660.9,2.6430948]
[1693504482931,6.0934847,1661.3,1661.0,1.51]
[1693504482932,2.21034058,1661.3,1661.0,1.51]
[1693504483085,0.94728882,1661.3,1661.1,1.51]
[1693504483478,5.46183882,1661.3,1661.1,1.51]
[1693504485184,5.46183882,1661.3,1661.0,1.51]
[1693504485389,5.46183882,1661.3,1661.0,2.61872755]
[1693504486206,6.72489058,1661.3,1661.0,2.61872755]
[1693504487922,2.21034058,1661.3,1661.0,7.13405755]
[1693504488292,6.72489058,1661.3,1661.0,7.13405755]
[1693504488497,2.21034058,1661.3,1661.0,7.13405755]
[1693504488693,6.72488058,1661.3,1661.0,4.51533]
[1693504488901,0.94728882,1661.2,1661.0,4.51533]
[1693504489813,0.94728882,1661.2,1660.9,5.6505548]
[1693504489814,5.46208882,1661.2,1660.9,5.6505548]
[1693504491224,6.72514058,1661.2,1660.9,5.6505548]
[1693504491580,0.94728882,1661.1,1660.9,5.6505548]
[1693504491781,0.94728882,1661.1,1660.9,5.6485548]
[1693504491980,8.65134058,1661.2,1660.9,5.6485548]
[1693504492248,8.65134058,1661.2,1660.9,5.6505548]
[1693504492581,8.65134058,1661.2,1660.9,0.002]
[1693504492582,13.16614058,1661.2,1660.9,0.002]
[1693504492791,2.21034058,1661.1,1660.9,0.002]
[1693504493127,2.21034058,1661.1,1660.8,0.002]
[1693504493128,6.72551058,1661.1,1660.8,0.002]
[1693504493285,6.72551058,1661.1,1660.8,4.51784]
[1693504493286,0.94728882,1661.0,1660.8,4.51784]
[1693504493485,6.72551058,1661.1,1660.8,4.51584]
[1693504493686,6.72551058,1661.1,1660.8,4.51784]
[1693504494302,6.72551058,1661.1,1660.8,6.208258]
[1693504494487,2.21034058,1661.1,1660.8,10.724148]
[1693504494700,2.21034058,1661.1,1660.8,12.234148]
[1693504495133,0.94728882,1661.1,1660.8,12.234148]
[1693504496204,2.21034058,1661.1,1660.8,12.234148]
[1693504498330,3.94728882,1661.1,1660.8,12.234148]
[1693504498836,4.51562,1660.9,1660.8,0.002]
[1693504499041,6.72595058,1661.0,1660.6,1.99664678]
[1693504499236,8.70125058,1661.0,1660.7,0.002]
[1693504499541,0.94728882,1660.9,1660.7,0.002]
[1693504499744,5.46296882,1660.9,1660.6,4.51828]
[1693504500111,4.51568,1660.9,1660.6,4.51828]
[1693504500311,4.51568,1660.9,1660.6,5.76057]
[1693504500552,13.21684058,1661.0,1660.6,5.76057]
[1693504500720,13.21684058,1661.0,1660.7,0.002]
[1693504501696,13.21684058,1661.0,1660.7,4.51815]
[1693504501903,8.70123058,1661.0,1660.7,4.51815]
[1693504502244,8.70123058,1661.0,1660.7,5.696822]
[1693504504548,8.70123058,1661.0,1660.7,4.51815]
[1693504505334,7.43817882,1661.0,1660.7,4.51815]
[1693504506133,7.43817882,1661.0,1660.7,9.03431]
[1693504508012,0.94728882,1661.0,1660.8,1.51]
[1693504508213,0.94728882,1661.0,1660.9,4.51562]
[1693504508530,3.94728882,1661.1,1660.9,12.075374]
[1693504510844,3.94728882,1661.1,1660.8,4.51772]
[1693504510845,9.72544058,1661.1,1660.8,4.51772]
[1693504511033,0.94728882,1661.0,1660.8,0.002]
[1693504511339,0.94728882,1661.0,1660.7,4.51804]
[1693504512450,0.94728882,1661.0,1660.7,9.0342]
[1693504512946,0.94728882,1661.0,1660.7,4.51804]
[1693504514850,0.94728882,1661.0,1660.7,0.002]
[1693504514851,11.24120058,1661.0,1660.7,0.002]
[1693504515024,8.95397211,1661.0,1660.7,0.002]
[1693504515423,0.94728882,1660.9,1660.7,0.002]
[1693504515648,0.94728882,1660.9,1660.6,10.54458]
[1693504515843,2.99408882,1660.9,1660.6,10.54458]
[1693504516259,16.54124882,1660.9,1660.6,0.002]
[1693504516445,1.65412488,1660.8,1660.6,0.002]
[1693504516754,2.28615344,1660.8,1660.5,5.00650018]
[1693504516965,0.63202856,1660.8,1660.6,4.5164]
[1693504517323,0.63202856,1660.8,1660.5,4.5185]
[1693504517324,0.63202856,1660.8,1660.5,9.03509]
[1693504517525,5.14797856,1660.8,1660.5,4.5185]
[1693504518059,5.43251738,1660.9,1660.5,13.55192]
[1693504518350,5.43251738,1660.9,1660.6,9.03459]
[1693504518568,6.77643445,1660.9,1660.6,9.03459]
[1693504518981,11.29205445,1660.9,1660.6,9.03459]
[1693504519326,15.80767445,1660.9,1660.6,0.002]
[1693504519521,11.29205445,1660.9,1660.6,0.002]
[1693504519954,11.29205445,1660.9,1660.6,4.51842]
[1693504520265,1.12920545,1660.8,1660.6,4.51842]
[1693504520565,1.12920545,1660.8,1660.6,4.51642]
[1693504521161,1.12920545,1660.8,1660.6,9.03285]
[1693504521758,5.43251738,1660.9,1660.6,9.03285]
[1693504521953,5.43251738,1660.9,1660.6,9.03485]
[1693504522332,5.43251738,1660.9,1660.6,4.51842]
[1693504522534,9.94813738,1660.9,1660.6,4.51842]
[1693504522958,2.67882856,1660.9,1660.6,9.03485]
[1693504523834,0.63202856,1660.9,1660.6,16.567415]
[1693504526891,0.63202856,1660.9,1660.7,1.99]
[1693504527036,0.63202856,1660.9,1660.8,13.54767]
[1693504527375,0.63202856,1661.0,1660.8,13.54767]
[1693504528875,0.63202856,1661.0,1660.8,9.03178]
[1693504529739,1.57931738,1661.0,1660.8,9.03178]
[1693504530741,0.63202856,1660.9,1660.8,9.03178]
[1693504531643,0.63202856,1660.9,1660.8,4.51589]
[1693504532444,0.63202856,1660.9,1660.8,4.51936206]
[1693504538478,5.95798573,1660.9,1660.8,0.00347206]
[1693504538798,10.47360573,1660.9,1660.8,0.00347206]
[1693504539087,5.95798573,1660.9,1660.8,0.00347206]
[1693504539498,5.95798573,1660.9,1660.6,1.8931]
[1693504539793,0.6324956,1660.8,1660.6,1.8931]
[1693504540090,0.6324956,1660.8,1660.5,6.02858]
[1693504540284,0.6324956,1660.8,1660.5,0.002]
[1693504540487,17.81335058,1660.8,1660.7,0.00348454]
[1693504540783,16.86606176,1660.8,1660.7,0.00348454]
[1693504541357,17.81477611,1660.8,1660.5,0.002]
[1693504541560,0.6325033,1660.6,1660.5,0.002]
[1693504541761,0.6325033,1660.6,1660.4,2.41076587]
[1693504541959,0.6325033,1660.6,1660.4,0.48266587]
[1693504542159,0.6325033,1660.6,1660.3,4.61913]
[1693504542363,2.6958033,1660.6,1660.5,0.00336081]
[1693504543178,7.2122333,1660.6,1660.5,0.00336081]
[1693504543416,7.2122333,1660.6,1660.3,0.102]
[1693504544314,7.2122333,1660.6,1660.4,0.00336831]
[1693504544617,10.84961852,1660.6,1660.4,0.00336831]
[1693504544908,7.28190287,1660.6,1660.4,0.00336831]
[1693504545061,0.6325033,1660.5,1660.4,0.00336831]
[1693504545282,5.1492133,1660.5,1660.4,0.00336831]
[1693504545501,4.51671,1660.5,1660.4,0.00336831]
[1693504545671,5.1492133,1660.5,1660.4,0.00336831]
[1693504546414,6.32907459,1660.5,1660.4,0.00336831]
[1693504546612,1.81236459,1660.5,1660.4,0.00336831]
[1693504547162,6.32907459,1660.5,1660.4,0.00336831]
[1693504548398,5.69657129,1660.5,1660.4,0.00336831]
[1693504548998,6.32907459,1660.5,1660.4,0.00336831]
[1693504550538,9.32907459,1660.5,1660.4,0.00336831]
[1693504552617,8.69657129,1660.5,1660.4,0.00336831]
[1693504553205,9.32907459,1660.5,1660.4,0.00336831]
[1693504553409,19.31120894,1660.5,1660.4,0.00336831]
[1693504553618,18.36249459,1660.5,1660.4,0.00336831]
[1693504554304,13.84578459,1660.5,1660.4,0.00336831]
[1693504554520,4.17986129,1660.5,1660.4,0.00336831]
[1693504554736,8.69657129,1660.5,1660.4,0.00336831]
[1693504556811,5.64657129,1660.5,1660.4,0.00336831]
[1693504558923,1.12986129,1660.5,1660.4,0.00336831]
[1693504559146,11.22832025,1660.7,1660.4,0.00336831]
[1693504559299,14.15606355,1660.7,1660.4,4.52234831]
[1693504560505,3.0,1660.6,1660.4,0.00536831]
[1693504560722,3.0,1660.6,1660.4,0.00336831]
[1693504561328,7.51644,1660.6,1660.4,0.00336831]
[1693504561529,9.68369036,1660.6,1660.4,0.00336831]
[1693504563515,7.51644,1660.6,1660.4,0.00336831]
[1693504565826,12.03288,1660.6,1660.4,0.00336831]
[1693504566033,7.51644,1660.6,1660.4,0.00336831]
[1693504577081,7.51644,1660.6,1660.4,1.51336831]
[1693504577841,7.51644,1660.6,1660.4,0.00336831]
[1693504583554,8.1489433,1660.6,1660.4,0.00336831]
[1693504585550,9.09765765,1660.6,1660.4,0.00336831]
[1693504586480,0.6325033,1660.5,1660.4,0.00336831]
[1693504588087,5.1492133,1660.5,1660.4,0.00336831]
[1693504588486,0.94871435,1660.5,1660.4,0.00336831]
[1693504588855,0.94871435,1660.5,1660.4,1.51336831]
[1693504592387,2.21176611,1660.5,1660.4,1.51336831]
[1693504593497,1.26305176,1660.5,1660.4,1.51336831]
[1693504595302,1.26305176,1660.5,1660.4,0.00336831]
[1693504596411,1.26305176,1660.5,1660.4,4.52034831]
[1693504597011,1.26305176,1660.5,1660.4,0.00336831]
[1693504599015,1.26305176,1660.5,1660.4,11.61208414]
[1693504599223,1.58223595,1660.5,1660.4,16.60906414]
[1693504599421,0.63288408,1660.5,1660.4,16.60906414]
[1693504599619,3.94935187,1660.6,1660.4,25.87280744]
[1693504599620,3.63288408,1660.6,1660.4,25.87280744]
[1693504599819,3.0,1660.6,1660.5,11.27803782]
[1693504600114,3.0,1660.6,1660.5,31.32816782]
[1693504600491,3.0,1660.6,1660.5,31.33165732]
[1693504607325,3.0,1660.6,1660.5,17.07791402]
[1693504607526,3.0,1660.6,1660.5,10.5469095]
[1693504608934,3.0,1660.6,1660.5,11.0269095]
[1693504612135,3.0,1660.6,1660.5,1.9934895]
[1693504613931,3.0,1660.6,1660.5,6.5101995]
[1693504614323,3.0,1660.6,1660.5,11.0269095]
[1693504614537,3.0,1660.6,1660.5,12.62988272]
[1693504618349,3.0,1660.6,1660.5,17.14659272]
[1693504618549,3.0,1660.6,1660.5,18.65659272]
[1693504618733,3.0,1660.6,1660.5,21.58433602]
[1693504619134,3.0,1660.6,1660.5,20.07433602]
[1693504620524,3.0,1660.6,1660.5,12.62988272]
[1693504620825,3.0,1660.6,1660.5,1.5134895]
[1693504623027,3.0,1660.6,1660.5,6.0301995]
[1693504630175,7.51643,1660.6,1660.5,0.0034895]
[1693504631965,3.0,1660.6,1660.5,0.0034895]
[1693504634305,7.51643,1660.6,1660.5,0.0034895]
[1693504634574,14.59393014,1660.6,1660.5,0.0034895]
[1693504634751,19.11036014,1660.6,1660.5,0.0034895]
[1693504634944,21.23386014,1660.6,1660.5,0.0034895]
[1693504635352,21.23386014,1660.6,1660.3,0.28002205]
[1693504635588,0.94767916,1660.5,1660.3,0.28002205]
[1693504635779,12.19949309,1660.5,1660.3,0.27802205]
[1693504636141,7.68257565,1660.5,1660.3,0.27802205]
[1693504636347,7.68257565,1660.5,1660.4,0.00448438]
[1693504637852,6.73486393,1660.5,1660.4,0.00448438]
[1693504638367,6.73486393,1660.5,1660.3,0.27802205]
[1693504639071,7.68257565,1660.5,1660.3,0.27802205]
[1693504639492,7.68257565,1660.5,1660.4,0.00448438]
[1693504640398,7.68257565,1660.5,1660.3,0.27802205]
[1693504640594,0.76825757,1660.4,1660.3,0.27802205]
[1693504641296,0.76825757,1660.4,1660.3,0.28251727]
[1693504641802,5.28523757,1660.4,1660.3,0.28251727]
[1693504643904,0.76825757,1660.4,1660.3,0.28251727]
[1693504644204,6.73486393,1660.5,1660.3,0.28251727]
[1693504646310,8.02491172,1660.6,1660.3,9.31696727]
[1693504646611,8.02491172,1660.6,1660.3,9.31896727]
[1693504646993,8.02491172,1660.6,1660.3,10.82896727]
[1693504647190,5.90141172,1660.6,1660.3,10.82896727]
[1693504647409,4.9537,1660.6,1660.3,10.82896727]
[1693504647594,4.9537,1660.6,1660.4,5.59980673]
[1693504647968,3.0,1660.6,1660.4,7.10980673]
[1693504648698,3.0,1660.6,1660.5,1.51]
[1693504648901,3.0,1660.6,1660.5,10.54342]
[1693504649271,3.0,1660.6,1660.5,15.06013]
[1693504649474,3.0,1660.6,1660.5,18.66890621]
[1693504651993,3.0,1660.6,1660.5,17.15890621]
[1693504653484,3.0,1660.6,1660.5,17.67080121]
[1693504656624,3.0,1660.6,1660.5,19.18080121]
[1693504661628,3.0,1660.6,1660.5,28.44454451]
[1693504662128,3.0,1660.6,1660.5,31.44454451]
[1693504664104,0.94771172,1661.1,1660.5,31.44454451]
[1693504664311,0.94771172,1661.1,1660.9,6.02539]
[1693504664530,0.94771172,1661.1,1661.0,0.48]
[1693504668335,0.94771172,1661.2,1661.0,6.10248926]
[1693504670554,0.94771172,1661.2,1661.0,6.0980663]
[1693504671759,8.73299735,1661.3,1661.1,0.00441213]
[1693504672061,7.46938172,1661.3,1661.1,0.00441213]
[1693504672443,7.46938172,1661.3,1661.0,6.0980663]
[1693504673458,7.46938172,1661.3,1661.1,0.00441213]
[1693504673665,6.52167,1661.3,1661.1,0.00441213]
[1693504674265,7.46938172,1661.3,1661.1,0.00441213]
[1693504674468,6.52167,1661.3,1661.1,0.00441213]
[1693504679378,2.0071,1661.3,1661.1,0.00441213]
[1693504683376,2.0071,1661.3,1661.1,4.51943213]
[1693504683588,2.0071,1661.3,1661.1,5.47089134]
[1693504683781,2.0071,1661.3,1661.2,1.99]
[1693504684092,2.0615,1661.4,1661.2,15.5344]
[1693504684253,1.8967,1661.6,1661.2,15.5344]
[1693504684481,1.8967,1661.6,1661.3,6.06779]
[1693504684482,0.002,1661.5,1661.3,6.06779]
[1693504684647,3.9493,1661.6,1661.3,6.06779]
[1693504685636,3.9493,1661.6,1661.3,10.58232]
[1693504688586,3.9493,1661.6,1661.4,4.51851964]
[1693504688789,3.9473,1661.6,1661.4,4.51851964]
[1693504688999,2.0526,1661.6,1661.4,5.5771506]
[1693504693381,2.0526,1661.6,1661.4,10.0914106]
[1693504693890,0.002,1661.7,1661.4,10.0914106]
[1693504694092,1.9502,1661.7,1661.4,14.6056706]
[1693504694249,1.9502,1661.7,1661.5,1.46056706]
[1693504694454,1.9482,1661.7,1661.5,10.48830706]
[1693504696589,1.9482,1661.7,1661.5,5.97431706]
[1693504697381,1.9482,1661.7,1661.6,0.00435798]
[1693504704602,6.46165,1661.7,1661.6,0.00435798]
[1693504707196,1.9482,1661.7,1661.6,0.00435798]
[1693504709805,3.95924346,1661.7,1661.6,0.00435798]
[1693504710003,12.98614346,1661.7,1661.6,0.00435798]
[1693504710384,12.98614346,1661.7,1661.3,9.02882]
[1693504710587,0.002,1661.6,1661.3,9.02882]
[1693504711613,0.002,1661.6,1661.4,0.0054881]
[1693504711811,11.92481172,1661.7,1661.4,0.0054881]
[1693504712414,11.92481172,1661.7,1661.3,9.02881]
[1693504712602,0.002,1661.6,1661.3,9.02881]
[1693504712780,0.002,1661.6,1661.3,10.4510222]
[1693504713508,0.002,1661.6,1661.4,4.5197281]
[1693504713690,11.92481172,1661.7,1661.4,4.5197281]
[1693504715517,13.18842735,1661.7,1661.4,4.5197281]
[1693504716318,13.18842735,1661.7,1661.4,4.51424]
[1693504716514,0.94771172,1661.6,1661.4,4.51424]
[1693504716818,0.94771172,1661.6,1661.4,5.55932522]
[1693504717117,13.18842735,1661.7,1661.4,5.55932522]
[1693504717279,8.67497735,1661.7,1661.4,5.55932522]
[1693504717482,0.94771172,1661.6,1661.5,0.00547418]
[1693504720595,2.21132735,1661.6,1661.5,0.00547418]
[1693504721725,2.21087964,1661.6,1661.5,4.9714356]
[1693504721931,0.94726401,1661.6,1661.5,4.9714356]
[1693504722531,2.21087964,1661.6,1661.5,4.9714356]
[1693504723609,1.26361563,1661.6,1661.5,4.9714356]
[1693504726716,2.84313517,1661.6,1661.5,4.9714356]
[1693504726929,1.26361563,1661.6,1661.5,4.9714356]
[1693504727350,2.84313517,1661.6,1661.5,4.9714356]
[1693504728049,1.57951954,1661.6,1661.5,4.9714356]
[1693504728252,1.57951954,1661.6,1661.5,4.51946418]
[1693504730457,3.84362345,1661.7,1661.5,4.51946418]
[1693504730630,1.58096506,1661.6,1661.5,4.51946418]
[1693504732119,1.58096506,1661.6,1661.5,9.03345418]
[1693504732319,1.58096506,1661.6,1661.5,4.51946418]
[1693504732526,1.58096506,1661.6,1661.5,6.0252356]
[1693504732731,1.89542345,1661.7,1661.5,4.51946418]
[1693504733140,1.5810584,1661.6,1661.5,4.51946418]
[1693504733338,1.89542345,1661.7,1661.5,4.51946418]
[1693504733622,1.58108394,1661.6,1661.5,4.51946418]
[1693504738278,1.58108394,1661.6,1661.5,9.03345418]
[1693504738426,2.84609217,1661.6,1661.5,10.5392106]
[1693504738764,0.94873942,1661.6,1661.5,19.4909439]
[1693504738928,0.94873942,1661.7,1661.5,26.3069439]
[1693504739128,2.21374765,1661.7,1661.6,1.99]
[1693504739462,0.94873942,1661.7,1661.6,17.10991419]
[1693504742348,0.94873942,1661.8,1661.6,17.10991419]
[1693504742557,2.21374765,1661.8,1661.6,17.10991419]
[1693504742758,2.21374765,1661.8,1661.6,26.37365749]
[1693504743143,0.94873942,1661.8,1661.7,1.51]
[1693504743342,0.94873942,1661.8,1661.7,17.04155276]
[1693504744164,0.95073942,1662.0,1661.7,29.30529606]
[1693504744371,0.95073942,1662.0,1661.9,15.0487]
[1693504744534,0.94873942,1662.0,1661.9,15.5287]
[1693504744731,0.94873942,1662.0,1661.9,17.10199393]
[1693504744948,0.94873942,1662.1,1661.9,17.10199393]
[1693504745163,0.94873942,1662.1,1662.0,15.52789]
[1693504746168,2.31474765,1662.2,1662.0,15.52789]
[1693504746369,1.04973942,1662.2,1662.1,1.51]
[1693504746570,0.101,1662.2,1662.1,17.03283642]
[1693504748146,0.101,1662.2,1662.1,4.51236]
[1693504750678,0.101,1662.2,1662.1,9.02472]
[1693504752981,0.101,1662.2,1662.1,13.53708]
[1693504753210,0.101,1662.2,1662.1,14.01708]
[1693504756487,0.101,1662.2,1662.1,15.52708]
[1693504756685,0.101,1662.2,1662.1,17.982298]
[1693504757671,0.101,1662.2,1662.1,27.2460413]
[1693504760088,0.101,1662.2,1662.1,16.472298]
[1693504761697,0.101,1662.2,1662.1,17.982298]
[1693504762201,0.101,1662.2,1662.1,30.2460413]
[1693504763483,0.101,1662.2,1662.1,30.72618876]
[1693504766926,0.101,1662.3,1662.1,30.72618876]
[1693504767115,0.101,1662.3,1662.2,13.36757565]
[1693504767313,0.101,1662.3,1662.2,26.90384565]
[1693504771933,0.101,1662.3,1662.2,28.41384565]
[1693504774334,0.101,1662.3,1662.2,22.07784565]
[1693504774557,0.101,1662.3,1662.2,16.53627]
[1693504775149,0.101,1662.3,1662.2,18.04627]
[1693504775349,0.051,1662.3,1662.2,18.04627]
[1693504776424,0.051,1662.3,1662.2,18.52627]
[1693504777758,0.051,1662.3,1662.2,14.01627]
[1693504778058,0.051,1662.3,1662.2,9.02418]
[1693504778267,0.051,1662.3,1662.2,13.53627]
[1693504780016,0.051,1662.3,1662.2,9.02418]
[1693504780716,0.051,1662.3,1662.2,13.53627]
[1693504787060,0.051,1662.3,1662.2,14.93791175]
[1693504787264,0.051,1662.3,1662.2,15.41791175]
[1693504788367,0.051,1662.3,1662.2,15.92928275]
[1693504790451,0.051,1662.3,1662.2,9.535551]
[1693504790847,0.051,1662.3,1662.2,5.023461]
[1693504791048,0.051,1662.3,1662.2,9.535551]
[1693504793189,0.051,1662.3,1662.2,5.023461]
[1693504793477,0.051,1662.3,1662.2,9.535551]
[1693504795780,0.051,1662.3,1662.2,14.047641]
[1693504795963,0.051,1662.3,1662.2,15.6034051]
[1693504797247,0.051,1662.3,1662.2,14.047641]
[1693504797648,0.051,1662.3,1662.2,9.535551]
[1693504799470,0.99973942,1662.3,1662.2,9.535551]
[1693504800159,0.99973942,1662.3,1662.2,9.516201]
[1693504800342,0.99973942,1662.3,1662.2,14.028291]
[1693504800747,0.051,1662.3,1662.2,14.028291]
[1693504801184,0.051,1662.3,1662.2,9.516201]
[1693504801383,2.69736242,1662.3,1662.2,0.511371]
[1693504801681,1.748623,1662.3,1662.2,5.023461]
[1693504801868,1.748623,1662.3,1662.2,9.535551]
[1693504802181,1.748623,1662.3,1662.2,0.511371]
[1693504802585,1.748623,1662.3,1662.2,5.023461]
[1693504802880,1.748623,1662.3,1662.2,0.511371]
[1693504803081,6.57651871,1662.3,1662.2,0.511371]
[1693504803470,2.06469871,1662.3,1662.2,0.511371]
[1693504803686,1.74733774,1662.3,1662.2,0.511371]
[1693504804049,3.32842168,1662.3,1662.2,0.511371]
[1693504804280,12.43499807,1662.3,1662.2,0.511371]
[1693504804655,16.94681807,1662.3,1662.2,0.511371]
[1693504804885,12.43499807,1662.3,1662.2,0.511371]
[1693504805246,13.94499807,1662.3,1662.2,0.511371]
[1693504805451,18.45681807,1662.3,1662.2,0.511371]
[1693504808362,20.35224152,1662.3,1662.2,0.511371]
[1693504809992,13.94499807,1662.3,1662.2,0.511371]
[1693504811206,6.57298924,1662.3,1662.2,0.511371]
[1693504811505,2.06116924,1662.3,1662.2,0.511371]
[1693504811705,7.83487381,1662.3,1662.2,0.511371]
[1693504812907,12.34669381,1662.3,1662.2,0.511371]
[1693504813214,11.08480924,1662.3,1662.2,0.511371]
[1693504814123,18.52437254,1662.3,1662.2,0.511371]
[1693504814326,19.40047957,1662.3,1662.2,0.511371]
[1693504814490,24.29590302,1662.3,1662.2,0.511371]
[1693504814998,30.63190302,1662.3,1662.2,0.511371]
[1693504815401,29.68824152,1662.3,1662.2,0.511371]
[1693504815600,32.70433419,1662.3,1662.2,0.511371]
[1693504816325,33.18714475,1662.3,1662.2,0.511371]
[1693504820139,34.13107091,1662.3,1662.2,0.511371]
[1693504821595,32.23564746,1662.3,1662.2,0.511371]
[1693504822617,33.20502007,1662.3,1662.2,0.511371]
[1693504823030,34.0909312,1662.3,1662.2,0.511371]
[1693504824429,34.27088019,1662.3,1662.2,0.511371]
[1693504826030,30.89915,1662.0,1661.9,0.002]
[1693504826232,30.89915,1662.0,1661.2,2.186152]
[1693504826233,13.54061,1661.7,1661.3,1.2914]
[1693504826435,13.54061,1661.7,1661.4,0.002]
[1693504826436,8.9511933,1661.7,1661.4,0.002]
[1693504826737,4.51326,1661.8,1661.5,4.51393]
[1693504826917,11.9542633,1661.8,1661.5,4.51593]
[1693504827231,7.4410033,1661.8,1661.5,4.51593]
[1693504827731,10.85943,1661.9,1661.5,5.614875]
[1693504827935,6.34637,1661.9,1661.6,0.002]
[1693504828098,4.51297,1661.9,1661.6,0.002]
[1693504828298,9.02603,1661.9,1661.6,0.002]
[1693504829136,4.51297,1661.9,1661.6,4.5157]
[1693504829301,30.6,1662.1,1661.8,9.02624]
[1693504829495,30.6,1662.1,1661.8,9.02824]
[1693504830302,60.44434,1662.2,1661.8,9.02824]
[1693504830527,60.44434,1662.2,1661.9,0.002]
[1693504830528,63.3720833,1662.2,1661.9,0.002]
[1693504830728,68.28768912,1662.2,1661.9,0.002]
[1693504831439,2.9277433,1662.1,1661.9,0.002]
[1693504831606,7.4401833,1662.1,1661.8,0.002]
[1693504831803,4.51268,1662.0,1661.8,0.002]
[1693504832046,4.51268,1662.0,1661.8,4.51313]
[1693504832224,7.4401833,1662.1,1661.8,4.51313]
[1693504832569,7.4401833,1662.1,1661.8,4.51513]
[1693504832720,4.51244,1662.1,1661.8,4.51513]
[1693504841250,48.42,1662.2,1661.8,16.405634]
[1693504841418,48.42,1662.2,1661.9,1.512]
[1693504841613,48.42,1662.2,1662.0,9.02526]
[1693504841812,3.53381056,1662.3,1662.0,9.02526]
[1693504842013,0.53381056,1662.3,1662.0,16.18520235]
[1693504842215,0.051,1662.3,1662.0,16.18520235]
[1693504843222,0.051,1662.3,1662.0,14.67520235]
[1693504843418,0.051,1662.3,1662.0,5.64994235]
[1693504843624,4.56283,1662.3,1662.0,4.51263]
[1693504844523,7.4905733,1662.3,1661.9,6.39387]
[1693504844718,12.94754406,1662.3,1662.0,0.002]
[1693504845345,14.20773175,1662.3,1662.0,0.002]
[1693504845520,6.336,1662.0,1661.3,4.51453]
[1693504845722,6.336,1662.0,1661.4,13.54256]
[1693504845723,8.9505033,1662.0,1661.4,13.54256]
[1693504845915,0.63109497,1661.8,1661.4,15.05256]